bitfinex/quotes_BTCUSD_20250711
["timestamp","ask_amount","ask_price","bid_price","bid_amount"]
[1752247907951,0.00049774,117490.0,117480.0,0.31894726]
[1752247908162,0.00049774,117490.0,117480.0,0.32094726]
[1752247908373,0.00049774,117490.0,117480.0,0.32945884]
[1752247908589,0.00049774,117490.0,117480.0,0.32845884]
[1752247909031,0.00049774,117490.0,117480.0,0.33145884]
[1752247909917,0.00049774,117490.0,117480.0,0.46585884]
[1752247910145,0.76688319,117530.0,117510.0,0.17870757]
[1752247910146,0.002,117530.0,117510.0,0.17870757]
[1752247910374,0.002,117530.0,117520.0,0.0351]
[1752247910594,0.002,117530.0,117520.0,0.05090046]
[1752247910798,0.002,117530.0,117520.0,0.2381024]
[1752247911001,0.002,117530.0,117520.0,0.23810247]
[1752247911206,0.002,117530.0,117520.0,0.30651418]
[1752247911408,0.002,117530.0,117520.0,0.13633039]
[1752247911620,0.002,117530.0,117520.0,0.13845768]
[1752247911827,0.002,117530.0,117520.0,0.05090046]
[1752247912033,0.01901584,117530.0,117520.0,0.01580046]
[1752247912248,1.03915546,117530.0,117520.0,0.01580046]
[1752247912705,1.07020219,117530.0,117520.0,0.01580046]
[1752247912938,0.18918573,117530.0,117520.0,0.01580046]
[1752247913153,0.02752422,117530.0,117520.0,0.05060046]
[1752247913385,0.002,117530.0,117520.0,0.05160046]
[1752247913610,0.15353612,117530.0,117520.0,0.05160046]
[1752247914079,0.15353598,117530.0,117520.0,0.05160046]
[1752247914337,0.15553598,117530.0,117520.0,0.05160346]
[1752247914555,0.34272192,117530.0,117520.0,0.05060346]
[1752247914768,1.03820567,117530.0,117520.0,0.01580346]
[1752247915189,1.0692524,117530.0,117520.0,0.01580346]
[1752247915621,1.0702524,117530.0,117520.0,0.01580346]
[1752247915845,1.25835746,117530.0,117520.0,0.01580346]
[1752247916075,1.21470733,117530.0,117520.0,0.01580346]
[1752247916306,1.21370733,117530.0,117520.0,0.01580346]
[1752247916561,6.21370733,117530.0,117520.0,1e-08]
[1752247916748,6.26809053,117530.0,117520.0,1e-08]
[1752247916962,6.26809053,117530.0,117510.0,0.00014996]
[1752247916963,5.8691018,117520.0,117510.0,0.00014996]
[1752247917176,0.18724946,117490.0,117480.0,0.00204]
[1752247917389,1.03422919,117490.0,117480.0,0.00219002]
[1752247918238,0.32172946,117490.0,117480.0,0.00219002]
[1752247918657,0.18724946,117490.0,117480.0,0.00219002]
[1752247918867,0.32168946,117490.0,117480.0,0.00219002]
[1752247919092,0.13444,117490.0,117480.0,0.03719002]
[1752247919295,0.15997285,117490.0,117480.0,0.03719002]
[1752247919506,0.13444,117490.0,117480.0,0.03719002]
[1752247919721,0.03405113,117500.0,117480.0,0.00539002]
[1752247919934,0.00851013,117500.0,117490.0,0.0356]
[1752247920162,0.03404633,117510.0,117490.0,0.0032]
[1752247920391,0.01701895,117510.0,117500.0,0.0356]
[1752247920603,0.38649297,117520.0,117500.0,0.0356]
[1752247920815,0.13444,117510.0,117500.0,0.0356]
[1752247921024,0.12798336,117520.0,117500.0,0.0324]
[1752247921235,0.15996633,117520.0,117510.0,0.0313]
[1752247921440,0.13444,117520.0,117510.0,0.0345]
[1752247921665,0.15145743,117520.0,117510.0,0.0345]
[1752247921939,0.04455012,117530.0,117510.0,0.0345]
[1752247922155,0.03604195,117530.0,117510.0,0.0313]
[1752247922370,0.002,117530.0,117520.0,0.0352]
[1752247922793,0.002,117530.0,117520.0,0.04370918]
[1752247923003,0.002,117530.0,117520.0,0.2993229]
[1752247923220,0.002,117530.0,117520.0,0.12913904]
[1752247923437,0.002,117530.0,117520.0,0.29947285]
[1752247923648,0.002,117530.0,117520.0,0.30798175]
[1752247923859,0.002,117530.0,117520.0,0.31649086]
[1752247924073,0.002,117530.0,117520.0,0.29947285]
[1752247924292,0.002,117530.0,117520.0,0.12077995]
[1752247924502,0.002,117530.0,117520.0,0.13992553]
[1752247924715,0.002,117530.0,117520.0,0.12290724]
[1752247924925,0.01050781,117530.0,117520.0,0.12077995]
[1752247925135,0.002,117530.0,117520.0,0.12077995]
[1752247925346,0.002,117530.0,117520.0,0.12290724]
[1752247925766,0.002,117530.0,117520.0,0.12077995]
[1752247925979,0.002,117530.0,117520.0,0.12290724]
[1752247926187,0.002,117530.0,117520.0,0.13141642]
[1752247926410,0.002,117530.0,117520.0,0.31649043]
[1752247927663,0.002,117530.0,117520.0,0.31649057]
[1752247927873,0.002,117530.0,117520.0,0.12077995]
[1752247928151,0.002,117530.0,117520.0,0.44234203]
[1752247928385,0.002,117530.0,117520.0,0.25513995]
[1752247928600,0.002,117530.0,117520.0,0.12077995]
[1752247928720,0.002,117530.0,117520.0,0.25817995]
[1752247929139,0.002,117530.0,117520.0,0.25517995]
[1752247929339,0.002,117530.0,117520.0,0.42536374]
[1752247929574,0.002,117530.0,117520.0,0.43387278]
[1752247929781,0.002,117530.0,117520.0,0.25517995]
[1752247930050,0.002,117530.0,117520.0,0.26217995]
[1752247930704,0.002,117530.0,117520.0,0.00715002]
[1752247930705,0.18918573,117530.0,117520.0,0.00715002]
[1752247930902,0.69622899,117530.0,117520.0,0.00715002]
[1752247931259,0.72175999,117530.0,117520.0,0.00715002]
[1752247931782,0.72175999,117530.0,117520.0,0.00415002]
[1752247932027,0.05305515,117530.0,117520.0,0.00415002]
[1752247932229,0.07007185,117530.0,117520.0,0.00717002]
[1752247932380,0.04454741,117530.0,117520.0,0.00717002]
[1752247932582,0.2317335,117530.0,117520.0,0.00615002]
[1752247932748,0.22322533,117530.0,117520.0,0.00615002]
[1752247932951,0.22322533,117530.0,117520.0,0.00415002]
[1752247933148,0.03603881,117530.0,117520.0,0.00415002]
[1752247933366,0.06156347,117530.0,117520.0,0.00415002]
[1752247933589,0.22322497,117530.0,117520.0,0.00415002]
[1752247933998,0.21471694,117530.0,117520.0,0.00415002]
[1752247934222,0.7187402,117530.0,117520.0,0.00415002]
[1752247934433,0.7187402,117530.0,117520.0,0.00015002]
[1752247934888,0.7217602,117530.0,117520.0,0.00015002]
[1752247935101,1.17542006,117530.0,117520.0,0.00015002]
[1752247935302,1.08999013,117530.0,117520.0,0.00015002]
[1752247936060,1.48999013,117530.0,117520.0,0.00015002]
[1752247936471,1.62447013,117530.0,117520.0,0.00015002]
[1752247936880,1.22447013,117530.0,117520.0,0.00015002]
[1752247937131,6.33978969,117530.0,117520.0,0.00015002]
[1752247937301,6.30990006,117530.0,117520.0,0.00015002]
[1752247937502,6.31190006,117530.0,117520.0,0.00015002]
[1752247937704,6.22647013,117530.0,117520.0,0.00015002]
[1752247938299,6.22947013,117530.0,117520.0,0.00015002]
[1752247939380,0.00851071,117490.0,117480.0,0.00119002]
[1752247939619,0.15166156,117490.0,117480.0,0.00119002]
[1752247939846,0.14315071,117490.0,117480.0,0.00421002]
[1752247940046,0.160178,117490.0,117480.0,0.00421002]
[1752247940351,0.16868878,117490.0,117480.0,0.00421002]
[1752247940591,0.160178,117490.0,117480.0,0.00621002]
[1752247940833,0.16868871,117490.0,117480.0,0.00621002]
[1752247941011,0.18571041,117490.0,117480.0,0.00621002]
[1752247941312,0.85996164,117490.0,117480.0,0.00319002]
[1752247941532,0.85447072,117490.0,117480.0,0.00319002]
[1752247941762,0.68424347,117490.0,117480.0,0.00319002]
[1752247941988,0.67271211,117490.0,117480.0,0.00619002]
[1752247942213,0.68122311,117490.0,117480.0,0.00619002]
[1752247942446,0.025538,117490.0,117480.0,0.00921002]
[1752247942665,0.025538,117490.0,117480.0,0.03861002]
[1752247942666,0.16868871,117490.0,117480.0,0.03861002]
[1752247942884,0.160178,117490.0,117480.0,0.03861002]
[1752247943141,0.160178,117490.0,117480.0,0.03961002]
[1752247943374,0.025538,117490.0,117480.0,0.03961002]
[1752247943599,0.160218,117490.0,117480.0,0.03961002]
[1752247944074,0.025538,117490.0,117480.0,0.21836377]
[1752247944291,0.50704326,117520.0,117490.0,0.0312]
[1752247944516,0.025536,117500.0,117490.0,0.0312]
[1752247944767,0.83453996,117510.0,117490.0,0.03422]
[1752247944968,0.53806441,117500.0,117480.0,0.12083995]
[1752247945174,0.52955378,117500.0,117480.0,0.12083995]
[1752247945377,0.50402326,117500.0,117480.0,0.11983995]
[1752247945585,0.50402326,117500.0,117480.0,0.28918954]
[1752247945793,0.13464,117500.0,117490.0,0.00302]
[1752247946936,0.0341936,117510.0,117490.0,0.12064993]
[1752247947147,0.1346,117500.0,117490.0,0.13228913]
[1752247947361,0.16028427,117510.0,117490.0,0.12164993]
[1752247947636,0.16028427,117510.0,117490.0,0.30251559]
[1752247947837,0.16879353,117510.0,117490.0,0.12064993]
[1752247948042,0.17730293,117510.0,117490.0,0.12377777]
[1752247948250,0.68983581,117510.0,117490.0,0.12164993]
[1752247948669,0.68983581,117510.0,117490.0,0.12264993]
[1752247949087,0.50402326,117500.0,117490.0,0.002]
[1752247949296,0.52104344,117500.0,117490.0,0.002]
[1752247949510,0.69125692,117500.0,117490.0,0.002]
[1752247949934,0.69427692,117500.0,117480.0,0.00119002]
[1752247950142,0.83438364,117490.0,117480.0,0.00119002]
[1752247950346,0.81736172,117490.0,117480.0,0.00119002]
[1752247950546,0.82038172,117490.0,117480.0,0.00119002]
[1752247951094,0.17872653,117500.0,117480.0,0.00319002]
[1752247951297,0.1346,117490.0,117480.0,0.00621002]
[1752247951503,0.16025045,117500.0,117480.0,0.03821002]
[1752247951699,0.1602506,117500.0,117490.0,0.001]
[1752247951903,0.01702018,117500.0,117490.0,0.00302]
[1752247952076,0.13472,117500.0,117490.0,0.03402]
[1752247952314,0.16872123,117500.0,117490.0,0.03402]
[1752247952523,0.00851078,117490.0,117480.0,0.03621002]
[1752247952746,0.02553277,117490.0,117480.0,0.03621002]
[1752247953092,0.00851085,117490.0,117480.0,0.03621002]
[1752247953304,0.69978342,117490.0,117480.0,0.00219002]
[1752247953555,0.69429286,117490.0,117480.0,0.00219002]
[1752247953760,0.68578172,117490.0,117480.0,0.00119002]
[1752247954410,0.18175846,117490.0,117480.0,0.00119002]
[1752247954624,0.68578172,117490.0,117480.0,0.00119002]
[1752247954837,0.68578172,117490.0,117480.0,0.00219002]
[1752247955055,1.12274158,117490.0,117480.0,0.00219002]
[1752247955262,1.05371165,117490.0,117480.0,0.00219002]
[1752247955610,1.45371165,117490.0,117480.0,0.00219002]
[1752247956243,1.05371165,117490.0,117480.0,0.00219002]
[1752247956651,6.05371165,117490.0,117480.0,0.00219002]
[1752247956848,6.18883165,117490.0,117480.0,0.00219002]
[1752247957530,6.18879165,117490.0,117480.0,0.00219002]
[1752247957808,6.27422158,117490.0,117480.0,0.00219002]
[1752247958439,6.18879165,117490.0,117480.0,0.00219002]
[1752247958628,6.18879165,117490.0,117480.0,0.00319002]
[1752247958826,6.05371165,117490.0,117480.0,0.00319002]
[1752247959029,6.18871165,117490.0,117480.0,0.00319002]
[1752247959235,6.18871165,117490.0,117480.0,0.00219002]
[1752247959558,1.05371165,117490.0,117480.0,0.00119002]
[1752247959763,1.15621165,117490.0,117480.0,0.00119002]
[1752247960449,1.17131165,117490.0,117480.0,0.00119002]
[1752247960654,1.58671165,117490.0,117480.0,0.00119002]
[1752247961417,1.42121165,117490.0,117480.0,0.00119002]
[1752247961615,1.30617165,117490.0,117480.0,0.00119002]
[1752247962433,1.55617165,117490.0,117480.0,0.00119002]
[1752247962781,0.66416839,117490.0,117480.0,0.00119002]
[1752247962988,1.16819165,117490.0,117480.0,0.00119002]
[1752247963194,1.30311165,117490.0,117480.0,0.00119002]
[1752247963399,1.30604165,117490.0,117480.0,0.00119002]
[1752247963815,1.55604165,117490.0,117480.0,0.00119002]
[1752247964651,1.42112165,117490.0,117480.0,0.00119002]
[1752247964857,1.22619308,117490.0,117480.0,0.00119002]
[1752247965064,1.09127308,117490.0,117480.0,0.00119002]
[1752247965283,0.82611308,117490.0,117480.0,0.00119002]
[1752247965497,0.83462408,117490.0,117480.0,0.12579002]
[1752247967009,0.83602187,117490.0,117480.0,0.12579002]
[1752247968966,0.83594187,117490.0,117480.0,0.12579002]
[1752247969758,0.83887187,117490.0,117480.0,0.12579002]
[1752247970776,0.6656344,117490.0,117480.0,0.12579002]
[1752247970980,0.85288393,117490.0,117480.0,0.16110002]
[1752247971320,0.53958489,117490.0,117480.0,0.16110002]
[1752247971521,0.01854,117490.0,117480.0,0.24652995]
[1752247971820,0.14310998,117500.0,117490.0,0.0328]
[1752247972044,0.15162003,117500.0,117490.0,0.0328]
[1752247972199,0.14310998,117500.0,117490.0,0.03581]
[1752247972619,0.1346,117500.0,117490.0,0.03581]
[1752247973067,0.1346,117500.0,117490.0,0.12123993]
[1752247973269,0.14310998,117500.0,117490.0,0.12123993]
[1752247973654,0.15462018,117500.0,117490.0,0.12123993]
[1752247973859,0.14610998,117500.0,117490.0,0.12123993]
[1752247974093,0.14510998,117500.0,117490.0,0.12123993]
[1752247974298,0.15362011,117500.0,117490.0,0.12123993]
[1752247974509,0.15362011,117500.0,117480.0,0.09579002]
[1752247974510,0.88117948,117500.0,117480.0,0.09579002]
[1752247974835,1.05142173,117490.0,117480.0,0.09579002]
[1752247975261,1.05142173,117490.0,117480.0,0.08727779]
[1752247975394,1.07696573,117490.0,117480.0,0.08727779]
[1752247975595,1.07696573,117490.0,117480.0,0.07876556]
[1752247976113,1.07696573,117490.0,117480.0,0.07125333]
[1752247976341,1.07696573,117490.0,117480.0,0.0617411]
[1752247976541,1.21148573,117490.0,117480.0,0.0617411]
[1752247976744,1.21348573,117490.0,117480.0,0.05322887]
[1752247978144,1.07896573,117490.0,117480.0,0.05322887]
[1752247978351,1.18314573,117490.0,117480.0,0.05322887]
[1752247980127,0.79866573,117490.0,117480.0,0.05322887]
[1752247980295,1.18314573,117490.0,117480.0,0.05422887]
[1752247980508,1.18310573,117490.0,117480.0,0.05422887]
[1752247981534,1.58310573,117490.0,117480.0,0.05322887]
[1752247981914,1.58410573,117490.0,117480.0,0.05322887]
[1752247982702,1.66953566,117490.0,117480.0,0.05322887]
[1752247982936,1.58410573,117490.0,117480.0,0.05322887]
[1752247984070,0.04556621,117490.0,117480.0,0.05322887]
[1752247984242,0.35023375,117490.0,117480.0,0.05322887]
[1752247984442,0.028544,117490.0,117480.0,0.08713887]
[1752247984659,0.003,117490.0,117480.0,0.08713887]
[1752247985204,0.02002185,117490.0,117480.0,0.08713887]
[1752247985461,0.01902185,117490.0,117480.0,0.08713887]
[1752247985665,0.02553299,117490.0,117480.0,0.08713887]
[1752247985873,0.02553299,117490.0,117480.0,0.08813887]
[1752247986081,0.01702185,117490.0,117480.0,0.08813887]
[1752247986284,0.52104511,117490.0,117480.0,0.08813887]
[1752247986513,0.52955618,117490.0,117480.0,0.08813887]
[1752247986742,0.69978408,117490.0,117480.0,0.05422887]
[1752247986942,0.69127301,117490.0,117480.0,0.05422887]
[1752247988030,0.69127301,117490.0,117480.0,0.06160276]
[1752247988492,0.52104532,117490.0,117480.0,0.06160276]
[1752247988738,0.20427109,117490.0,117480.0,0.09552276]
[1752247988960,0.19576038,117490.0,117480.0,0.09552276]
[1752247989186,0.19576038,117490.0,117480.0,0.07740276]
[1752247989412,0.17873846,117490.0,117480.0,0.06160276]
[1752247989861,0.69127229,117490.0,117480.0,0.06160276]
[1752247990089,0.70829479,117490.0,117480.0,0.06160276]
[1752247990366,0.69978401,117490.0,117480.0,0.06160276]
[1752247990814,0.69978401,117490.0,117480.0,0.07820276]
[1752247990815,0.52104504,117490.0,117480.0,0.07820276]
[1752247991041,0.52104496,117490.0,117480.0,0.08122276]
[1752247991483,0.01702163,117490.0,117480.0,0.08122276]
[1752247991714,0.19576046,117490.0,117480.0,0.08122276]
[1752247991947,0.69127287,117490.0,117480.0,0.06160276]
[1752247992409,0.69322287,117490.0,117480.0,0.06370276]
[1752247992848,0.69322287,117490.0,117480.0,0.05632887]
[1752247993092,0.51253411,117490.0,117480.0,0.05632887]
[1752247993310,0.00851078,117490.0,117480.0,0.09234887]
[1752247993529,0.02553313,117490.0,117480.0,0.08932887]
[1752247993772,0.69616272,117490.0,117480.0,0.05422887]
[1752247993977,0.97170472,117490.0,117480.0,0.05422887]
[1752247995727,1.05713465,117490.0,117480.0,0.05422887]
[1752247995946,1.08863465,117490.0,117480.0,0.05422887]
[1752247996179,1.15417811,117490.0,117480.0,0.04571886]
[1752247996385,1.15417811,117490.0,117480.0,0.03720885]
[1752247996794,1.08668465,117490.0,117480.0,0.03620885]
[1752247997007,1.08768465,117490.0,117480.0,0.03620885]
[1752247997851,1.08868465,117490.0,117480.0,0.03620885]
[1752247998865,1.19158465,117490.0,117480.0,0.03620885]
[1752247999373,1.59158465,117490.0,117480.0,0.03620885]
[1752248000869,0.37999414,117490.0,117480.0,0.03620885]
[1752248001071,1.06275601,117490.0,117480.0,0.03620885]
[1752248001277,1.18864501,117490.0,117480.0,0.03620885]
[1752248001475,1.19158501,117490.0,117480.0,0.03620885]
[1752248002905,1.1830738,117490.0,117480.0,0.03620885]
[1752248003343,1.2139738,117490.0,117480.0,0.03620885]
[1752248004846,1.2159238,117490.0,117480.0,0.03620885]
[1752248007184,0.71190054,117490.0,117480.0,0.03620885]
[1752248007421,1.2159238,117490.0,117480.0,0.03620885]
[1752248008070,1.1850238,117490.0,117480.0,0.03620885]
[1752248009298,1.0506238,117490.0,117480.0,0.03620885]
[1752248009537,1.1850238,117490.0,117480.0,0.03620885]
[1752248013575,1.2157238,117490.0,117480.0,0.03620885]
[1752248014818,6.30115373,117490.0,117480.0,0.0276968]
[1752248015019,6.83218188,117490.0,117480.0,0.0276968]
[1752248015239,0.45258133,117470.0,117460.0,0.00204]
[1752248015420,1.17838452,117470.0,117460.0,0.00204]
[1752248015624,1.18132452,117470.0,117460.0,0.00204]
[1752248015849,1.04692452,117470.0,117460.0,0.00204]
[1752248016048,1.18132452,117470.0,117460.0,0.00204]
[1752248016392,1.20757076,117470.0,117460.0,0.00204]
[1752248016593,1.25460528,117470.0,117460.0,0.00253774]
[1752248016740,1.75862854,117470.0,117460.0,0.00253774]
[1752248017188,1.25460528,117470.0,117460.0,0.00253774]
[1752248017553,1.2332619,117470.0,117460.0,0.00253774]
[1752248018699,1.2332619,117470.0,117460.0,0.01845911]
[1752248018909,1.2018619,117470.0,117460.0,0.01845997]
[1752248020061,1.2330619,117470.0,117460.0,0.01845997]
[1752248020262,1.2515219,117470.0,117460.0,0.01845997]
[1752248020463,1.33695183,117470.0,117460.0,0.01845997]
[1752248022269,1.2515219,117470.0,117460.0,0.01845997]
[1752248024363,1.27852679,117470.0,117460.0,0.01845997]
[1752248025548,1.1171219,117470.0,117460.0,0.01845997]
[1752248025747,1.2515219,117470.0,117460.0,0.01845997]
[1752248029346,1.1171219,117470.0,117460.0,0.01844812]
[1752248029552,1.0859219,117470.0,117460.0,0.01844773]
[1752248029757,1.0829819,117470.0,117460.0,0.02044773]
[1752248029964,1.19018566,117470.0,117460.0,0.05512773]
[1752248030145,1.19226566,117470.0,117460.0,0.05204773]
[1752248030343,1.19226566,117470.0,117460.0,0.03674773]
[1752248030549,1.19226566,117470.0,117460.0,0.02044773]
[1752248030948,1.28079559,117470.0,117460.0,0.01844773]
[1752248031623,1.19536566,117470.0,117460.0,0.01844773]
[1752248033964,1.22063958,117470.0,117460.0,0.01844773]
[1752248034582,1.22059958,117470.0,117460.0,0.01844773]
[1752248035182,1.08623958,117470.0,117460.0,0.01844773]
[1752248035354,1.22059958,117470.0,117460.0,0.01844773]
[1752248036782,1.23334258,117470.0,117460.0,0.01844773]
[1752248037606,1.23334258,117470.0,117460.0,0.02044773]
[1752248038403,1.09588258,117470.0,117460.0,0.02044773]
[1752248038638,1.23024258,117470.0,117460.0,0.02044773]
[1752248039042,1.23334258,117470.0,117460.0,0.01844773]
[1752248039624,1.31877251,117470.0,117460.0,0.01844773]
[1752248040228,1.31877251,117470.0,117460.0,0.01845869]
[1752248041118,1.20496866,117470.0,117460.0,0.02045869]
[1752248041317,0.5538424,117470.0,117460.0,0.02045869]
[1752248041523,1.20496866,117470.0,117460.0,0.02045869]
[1752248041948,1.60496866,117470.0,117460.0,0.02045869]
[1752248042722,1.06852866,117470.0,117460.0,0.05523869]
[1752248042904,1.20284866,117470.0,117460.0,0.05523869]
[1752248043278,0.95284866,117470.0,117460.0,0.05523869]
[1752248043474,0.73309873,117470.0,117460.0,0.05523869]
[1752248044112,0.86741873,117470.0,117460.0,0.05523869]
[1752248044543,0.72809873,117470.0,117460.0,0.05523869]
[1752248045384,0.72809873,117470.0,117460.0,0.06086256]
[1752248045602,0.88444369,117470.0,117460.0,0.06086256]
[1752248045805,0.87593146,117470.0,117460.0,0.06086256]
[1752248046019,0.86741902,117470.0,117460.0,0.06086256]
[1752248046305,1.45633521,117470.0,117460.0,0.01845869]
[1752248046505,1.48235999,117470.0,117460.0,0.01845869]
[1752248046863,1.50790799,117470.0,117460.0,0.01845869]
[1752248047107,1.53890799,117470.0,117460.0,0.01845869]
[1752248047282,1.59386456,117470.0,117460.0,0.01845869]
[1752248047481,1.53890799,117470.0,117460.0,0.01845869]
[1752248048472,1.54090799,117470.0,117460.0,0.01845869]
[1752248048715,0.50637547,117470.0,117460.0,0.01845869]
[1752248048943,1.53990799,117470.0,117460.0,0.01845869]
[1752248049271,1.54090799,117470.0,117460.0,0.01845869]
[1752248051442,6.54090799,117470.0,117460.0,0.01845869]
[1752248052913,6.54090799,117470.0,117460.0,0.00253774]
[1752248053099,6.54090799,117470.0,117460.0,0.0184827]
[1752248053471,6.40658799,117470.0,117460.0,0.0184827]
[1752248053701,6.54090799,117470.0,117460.0,0.0184827]
[1752248054073,6.62633792,117470.0,117460.0,0.0184827]
[1752248054526,5.37305547,117470.0,117460.0,0.0184827]
[1752248054728,6.54090799,117470.0,117460.0,0.0184827]
[1752248055114,6.51488321,117470.0,117460.0,0.0184827]
[1752248057089,6.38056321,117470.0,117460.0,0.0184827]
[1752248057303,0.56293069,117470.0,117460.0,0.0204727]
[1752248057498,1.21401695,117470.0,117460.0,0.0532727]
[1752248057707,1.21401695,117470.0,117460.0,0.0184827]
[1752248057708,1.21699695,117470.0,117460.0,0.0184827]
[1752248057913,5.21108412,117460.0,117450.0,1e-08]
[1752248058062,6.4910605,117460.0,117450.0,1e-08]
[1752248058261,0.43734512,117430.0,117420.0,0.002]
[1752248058468,1.17596131,117430.0,117420.0,0.002]
[1752248058905,1.17894131,117430.0,117420.0,0.002]
[1752248059486,1.20449931,117430.0,117420.0,0.002]
[1752248059649,1.20499663,117430.0,117420.0,0.002]
[1752248060649,1.20499663,117430.0,117420.0,0.00399]
[1752248060856,0.81659663,117430.0,117420.0,0.00716]
[1752248060984,0.87054419,117430.0,117420.0,0.03886]
[1752248061182,0.83647106,117430.0,117420.0,0.03886]
[1752248061410,0.18884259,117430.0,117420.0,0.03886]
[1752248061612,0.13581732,117430.0,117420.0,0.03886]
[1752248061844,0.14533245,117430.0,117420.0,0.03886]
[1752248062378,0.15284779,117430.0,117420.0,0.03886]
[1752248062548,0.13481732,117430.0,117420.0,0.03886]
[1752248062723,0.15184779,117430.0,117420.0,0.03886]
[1752248062960,0.16036299,117430.0,117420.0,0.04086]
[1752248063111,0.15184765,117430.0,117420.0,0.03886]
[1752248063312,0.16036299,117430.0,117420.0,0.03886]
[1752248063514,0.14433245,117430.0,117420.0,0.04286]
[1752248063716,0.13641732,117430.0,117420.0,0.04286]
[1752248064145,0.00149732,117430.0,117420.0,0.04286]
[1752248064993,0.00149732,117430.0,117420.0,0.04486]
[1752248065525,0.00149732,117430.0,117420.0,0.0469891]
[1752248065877,0.01001252,117430.0,117420.0,0.04486]
[1752248066081,0.51480565,117430.0,117420.0,0.04486]
[1752248066335,0.01001252,117430.0,117420.0,0.04486]
[1752248066511,0.00149732,117430.0,117420.0,0.04286]
[1752248066720,0.01001237,117430.0,117420.0,0.04286]
[1752248066914,0.00149732,117430.0,117420.0,0.04386]
[1752248067222,0.5148055,117430.0,117420.0,0.04386]
[1752248067396,0.00149732,117430.0,117420.0,0.04386]
[1752248067621,0.0355584,117430.0,117420.0,0.04386]
[1752248067818,0.52332063,117430.0,117420.0,0.04386]
[1752248068198,0.01001237,117430.0,117420.0,0.04386]
[1752248068651,0.02704284,117430.0,117420.0,0.04386]
[1752248068854,0.0185275,117430.0,117420.0,0.04386]
[1752248069075,0.01001237,117430.0,117420.0,0.04386]
[1752248069630,0.00149732,117430.0,117420.0,0.048252]
[1752248069831,0.00149732,117430.0,117420.0,0.06417348]
[1752248070038,0.01001237,117430.0,117420.0,0.06417348]
[1752248070258,0.02704284,117430.0,117420.0,0.06417348]
[1752248070551,0.0185275,117430.0,117420.0,0.05978148]
[1752248070958,0.00149732,117430.0,117420.0,0.05978148]
[1752248071160,0.13653732,117430.0,117420.0,0.05978148]
[1752248073025,0.16204357,117430.0,117420.0,0.05978148]
[1752248073265,0.33235779,117430.0,117420.0,0.05978148]
[1752248073434,0.16204357,117430.0,117420.0,0.05978148]
[1752248073616,0.33235779,117430.0,117420.0,0.05978148]
[1752248073818,0.82863572,117430.0,117420.0,0.05978148]
[1752248074073,0.82863572,117430.0,117420.0,0.02491148]
[1752248074074,0.8222203,117430.0,117420.0,0.02491148]
[1752248074499,0.8201203,117430.0,117420.0,0.05531148]
[1752248074748,0.8201203,117430.0,117420.0,0.05848148]
[1752248074865,0.6851203,117430.0,117420.0,0.05848148]
[1752248075065,0.8201603,117430.0,117420.0,0.05848148]
[1752248075278,0.8222603,117430.0,117420.0,0.05531148]
[1752248076283,0.31746717,117430.0,117420.0,0.04031148]
[1752248076576,0.8222603,117430.0,117420.0,0.04031148]
[1752248076989,0.8478143,117430.0,117420.0,0.04031148]
[1752248077399,0.7127743,117430.0,117420.0,0.04031148]
[1752248077606,0.8456743,117430.0,117420.0,0.05878148]
[1752248080408,0.8456743,117430.0,117420.0,0.04286]
[1752248081017,0.87235592,117430.0,117420.0,0.04286]
[1752248081480,0.73735592,117430.0,117420.0,0.04286]
[1752248081633,0.87231592,117430.0,117420.0,0.04286]
[1752248082238,1.21751592,117430.0,117420.0,0.007]
[1752248083046,1.21751592,117430.0,117420.0,0.00914]
[1752248083263,1.21430592,117430.0,117420.0,0.00914]
[1752248084051,1.07934592,117430.0,117420.0,0.02863]
[1752248084248,0.69729202,117430.0,117420.0,0.02863]
[1752248084430,1.21422592,117430.0,117420.0,0.02863]
[1752248084632,1.22063163,117430.0,117420.0,0.04363]
[1752248085445,1.212116,117430.0,117420.0,0.04363]
[1752248085650,0.91555683,117430.0,117420.0,0.04363]
[1752248085852,0.68911659,117430.0,117420.0,0.04363]
[1752248086066,1.20605049,117430.0,117420.0,0.05857057]
[1752248086273,1.2145662,117430.0,117420.0,0.05857057]
[1752248086478,1.20605071,117430.0,117420.0,0.04263]
[1752248087325,1.19753515,117430.0,117420.0,0.04263]
[1752248088463,1.20605064,117430.0,117420.0,0.04263]
[1752248089754,1.07133064,117430.0,117420.0,0.04263]
[1752248089954,1.20593064,117430.0,117420.0,0.04263]
[1752248090381,1.19741515,117430.0,117420.0,0.04263]
[1752248091993,0.68048125,117430.0,117420.0,0.04263]
[1752248092192,1.19741515,117430.0,117420.0,0.04263]
[1752248093082,1.19940515,117430.0,117420.0,0.02633]
[1752248093281,1.19940515,117430.0,117420.0,0.00814]
[1752248094280,1.19940515,117430.0,117420.0,0.02394]
[1752248095209,0.22291135,117430.0,117420.0,0.04263]
[1752248095413,0.74836088,117430.0,117420.0,0.046899]
[1752248095631,0.02705132,117430.0,117420.0,0.13232893]
[1752248095839,0.00149732,117430.0,117420.0,0.13445803]
[1752248096020,0.14307447,117440.0,117420.0,0.15040517]
[1752248096251,0.15163844,117440.0,117430.0,0.03489]
[1752248096452,0.15163844,117440.0,117430.0,0.05083714]
[1752248096688,0.67708689,117440.0,117430.0,0.05297714]
[1752248097098,0.69415649,117440.0,117430.0,0.05297714]
[1752248097319,0.83891293,117440.0,117430.0,0.05297714]
[1752248098038,0.83238824,117440.0,117430.0,0.01594714]
[1752248098246,1.79250292,117440.0,117430.0,0.01694714]
[1752248098467,1.70386299,117440.0,117430.0,0.01908714]
[1752248098666,1.18692909,117440.0,117430.0,0.01908714]
[1752248098871,1.18680909,117440.0,117430.0,0.01908714]
[1752248099134,1.18780909,117440.0,117430.0,0.01908714]
[1752248099679,1.19632378,117440.0,117430.0,0.01908714]
[1752248099903,0.88955369,117440.0,117430.0,0.05417714]
[1752248100207,0.88955369,117440.0,117430.0,0.05969485]
[1752248100208,0.13544971,117440.0,117430.0,0.05969485]
[1752248100408,0.15247844,117440.0,117430.0,0.05969485]
[1752248100587,0.51798361,117440.0,117430.0,0.05969485]
[1752248100789,0.00104971,117440.0,117430.0,0.1472537]
[1752248101184,0.00104971,117440.0,117430.0,0.14512478]
[1752248101987,0.00104971,117440.0,117430.0,0.1472537]
[1752248103072,0.00104971,117440.0,117430.0,0.85152509]
[1752248103406,0.00104971,117440.0,117430.0,0.14511671]
[1752248103819,0.00104971,117440.0,117430.0,0.14411671]
[1752248104234,0.00104971,117440.0,117430.0,0.14611671]
[1752248104437,0.00104971,117440.0,117430.0,0.86104]
[1752248104640,4.971e-05,117440.0,117430.0,0.85891108]
[1752248104848,4.971e-05,117440.0,117430.0,0.86796137]
[1752248105057,9.3e-07,117440.0,117430.0,0.86796137]
[1752248105267,9.3e-07,117440.0,117430.0,0.3425122]
[1752248105472,9.3e-07,117440.0,117430.0,0.8679613]